bitfinex/quotes_SOLUSD_20250321
["timestamp","ask_amount","ask_price","bid_price","bid_amount"]
[1742582008225,12.8,129.38,129.13,0.5]
[1742582008440,19.3244,129.37,129.15,0.5]
[1742582008637,38.98055403,129.66,129.4,4.664e-05]
[1742582008843,207.32,129.61,129.4,4.664e-05]
[1742582009165,207.32,129.47,128.95,0.5]
[1742582009327,7.98579682,129.46,128.95,230.72236077]
[1742582009528,12.25800505,129.45,129.19,0.5]
[1742582009726,0.5,129.52,129.19,219.7]
[1742582009931,0.5,129.47,129.2,6.73562834]
[1742582010128,65.637,129.5,129.13,0.5]
[1742582010331,6.4537,129.44,129.11,0.5]
[1742582010530,351.9937,129.44,129.11,0.5]
[1742582010829,351.9937,129.44,129.07,144.73181725]
[1742582010830,20.0,129.2,129.03,0.5]
[1742582011029,207.32,129.19,129.02,0.5]
[1742582011235,207.32,129.19,128.87,0.5]
[1742582011431,214.19055959,129.19,128.88,0.5]
[1742582011659,7.86055959,129.18,128.89,10.63400075]
[1742582011955,206.48,129.17,128.82,136.7]
[1742582012164,206.48,129.16,128.9,10.63400075]
[1742582012353,27.096,129.17,128.91,1.41848687]
[1742582012553,0.5,129.1,128.92,1.41837684]
[1742582012772,0.5,129.1,128.76,2.7094138]
[1742582012927,0.5,129.1,128.77,1.42002906]
[1742582013262,0.5,129.08,128.77,138.12002906]
[1742582013554,0.5,128.94,128.77,138.12002906]
[1742582013843,0.5,129.01,128.77,137.44632906]
[1742582014045,206.06,129.02,128.77,137.44632906]
[1742582014351,27.1296,129.01,128.77,137.44632906]
[1742582014561,0.5,128.94,128.77,137.44632906]
[1742582014732,206.06,128.96,128.76,139.4094138]
[1742582015063,0.5,128.89,128.77,1.42002906]
[1742582015265,206.06,128.89,128.77,136.7]
[1742582015467,205.94349055,128.89,128.77,136.7]
[1742582015749,0.5,128.87,128.76,139.4094138]
[1742582016149,0.5,128.81,128.76,2.7094138]
[1742582016345,7.7645,128.79,128.76,2.7094138]
[1742582016546,7.7645,128.79,128.56,136.7]
[1742582016746,0.5,128.75,128.57,1.42223802]
[1742582017054,182.37610969,128.9,128.73,0.5]
[1742582017239,182.37610969,128.9,128.65,0.5]
[1742582017436,205.84,128.96,128.7,0.5]
[1742582017629,205.84,128.96,128.7,136.7]
[1742582017836,205.84,128.96,128.78,0.5]
[1742582018050,77.5072,129.02,128.82,38.54202968]
[1742582018229,27.0813,129.24,129.05,0.5]
[1742582018435,27.0813,129.24,129.11,0.5]
[1742582018636,27.0813,129.24,129.07,0.5]
[1742582018935,27.0813,129.24,129.09,0.5]
[1742582019146,27.0813,129.24,129.06,0.5]
[1742582019344,38.57302108,129.23,128.97,0.5]
[1742582019543,38.57302108,129.23,128.97,136.7]
[1742582019830,27.0813,129.24,129.08,0.5]
[1742582020034,104.4567,129.24,129.04,0.5]
[1742582020249,104.4567,129.24,129.05,0.5]
[1742582020554,38.57302108,129.23,129.02,0.5]
[1742582020755,38.57302108,129.23,128.96,0.5]
[1742582020940,38.00188531,129.21,128.92,0.5]
[1742582021141,38.12374463,129.16,128.86,0.5]
[1742582021341,38.12374463,129.16,128.73,0.5]
[1742582021342,26.5328,129.12,128.79,0.5]
[1742582021542,58.25996221,129.09,128.82,0.5]
[1742582021743,38.76293858,129.07,128.9,0.063]
[1742582021950,20.0,129.01,128.76,0.5]
[1742582022150,38.16351411,128.97,128.72,0.5]
[1742582022456,20.0,128.92,128.7,0.5]
[1742582022759,20.0,128.82,128.67,0.5]
[1742582022949,20.0,128.78,128.62,0.5]
[1742582023152,20.0,128.74,128.62,0.5]
[1742582023355,20.0,128.7,128.61,0.5]
[1742582023661,20.0,128.69,128.6,0.5]
[1742582023850,20.0,128.85,128.63,0.5]
[1742582024051,20.0,128.76,128.6,0.5]
[1742582024260,20.0,128.72,128.59,0.5]
[1742582024554,205.42,128.75,128.51,139.4094138]
[1742582024555,27.1929,128.71,128.63,0.5]
[1742582024771,20.0,128.68,128.55,0.5]
[1742582024954,20.0,128.68,128.51,2.7094138]
[1742582024955,20.0,128.68,128.58,0.5]
[1742582025141,27.1929,128.71,128.64,0.5]
[1742582025343,27.1929,128.71,128.63,0.5]
[1742582025537,0.5,128.62,128.29,0.5]
[1742582025774,58.14638953,128.56,128.31,30.0]
[1742582026061,20.0,128.52,128.31,30.0]
[1742582026241,20.0,128.52,128.32,205.44]
[1742582026448,20.0,128.48,128.31,1.42511996]
[1742582026761,20.0,128.48,128.31,138.12511996]
[1742582026939,167.07350035,128.55,128.31,138.12511996]
[1742582027647,62.91811799,128.42,128.34,62.91811799]
[1742582028253,62.91811799,128.38,128.31,1.42511996]
[1742582028462,70.70871799,128.36,128.29,62.91811799]
[1742582028662,7.7906,128.36,128.3,62.91811799]
[1742582029254,7.7906,128.36,128.31,62.91811799]
[1742582029660,62.91811799,128.34,128.26,2.7094138]
[1742582029964,62.91811799,128.34,128.28,62.91811799]
[1742582030162,27.267,128.36,128.26,2.7094138]
[1742582030163,7.7906,128.36,128.32,18.933972]
[1742582030355,19.4663,128.43,128.37,0.28432314]
[1742582030560,62.91811799,128.45,128.39,62.91811799]
[1742582030750,62.91811799,128.45,128.32,342.28]
[1742582030949,62.91811799,128.45,128.4,0.28432314]
[1742582031262,62.91811799,128.47,128.42,0.28432314]
[1742582031457,27.2309,128.53,128.4,0.28432314]
[1742582031667,18.64964886,128.5,128.26,2.7094138]
[1742582031846,62.91811799,128.39,128.34,19.07613357]
[1742582032047,62.91811799,128.35,128.26,2.7094138]
[1742582032247,62.91811799,128.32,128.26,65.62753179]
[1742582032447,7.7936,128.31,128.27,62.91811799]
[1742582032668,7.7936,128.31,128.3,63.06027956]
[1742582032862,38.939,128.41,128.32,0.14216157]
[1742582033055,38.939,128.41,128.35,82.13641313]
[1742582033261,62.91811799,128.44,128.38,63.20244113]
[1742582033468,62.91811799,128.41,128.35,0.28432314]
[1742582033652,62.91811799,128.41,128.35,19.21829514]
[1742582033851,62.91811799,128.36,128.26,2.7094138]
[1742582034068,62.91811799,128.33,128.27,63.20244113]
[1742582034260,62.91811799,128.36,128.31,18.71264886]
[1742582034457,19.4667,128.43,128.36,0.28432314]
[1742582034774,27.253,128.43,128.39,62.91811799]
[1742582035072,6.0771,128.52,128.39,62.91811799]
[1742582035073,7.7796,128.54,128.44,19.21829514]
[1742582035288,7.7796,128.54,128.5,62.91811799]
[1742582035497,62.91811799,128.51,128.44,0.28432314]
[1742582035783,19.4527,128.52,128.47,62.91811799]
[1742582035989,62.91811799,128.5,128.38,205.74]
[1742582036188,62.91811799,128.5,128.35,62.91811799]
[1742582036189,62.91811799,128.47,128.36,205.74]
[1742582036354,8.76559067,128.43,128.37,18.933972]
[1742582036554,62.91811799,128.42,128.37,18.933972]
[1742582036779,62.91811799,128.44,128.39,18.933972]
[1742582036983,62.91811799,128.45,128.4,0.28432314]
[1742582037150,19.4537,128.51,128.43,62.91811799]
[1742582037489,19.4537,128.51,128.4,0.28432314]
[1742582037787,62.91811799,128.46,128.41,0.28432314]
[1742582037986,62.91811799,128.44,128.39,18.79181043]
[1742582038284,20.0,128.49,128.38,0.28432314]
[1742582038490,46.6816,128.53,128.38,0.28432314]
[1742582038491,7.7857,128.44,128.4,63.20244113]
[1742582038655,62.91811799,128.43,128.31,0.063]
[1742582038855,27.25,128.44,128.33,0.14216157]
[1742582039189,27.25,128.44,128.32,62.91811799]
[1742582039190,20.0,128.32,128.31,0.0001]
[1742582039352,82.91811799,128.32,128.31,0.0001]
[1742582039950,62.91811799,128.32,128.31,0.0001]
[1742582040660,70.71111799,128.32,128.31,0.0001]
[1742582040933,7.793,128.32,128.31,0.0001]
[1742582041091,0.28432314,128.19,128.01,7.807]
[1742582041256,0.28432314,128.22,128.0,2.7094138]
[1742582041257,62.91811799,128.09,128.0,2.7094138]
[1742582041549,62.91811799,128.18,128.08,62.91811799]
[1742582041760,20.0,128.17,128.07,205.86]
[1742582042085,0.14216157,128.24,128.08,0.14216157]
[1742582042086,62.91811799,128.14,128.08,0.14216157]
[1742582042290,0.14216157,128.24,128.08,0.14216157]
[1742582042291,62.91811799,128.13,128.08,0.14216157]
[1742582042583,0.14216157,128.24,128.07,205.86]
[1742582042584,62.91811799,128.15,128.07,205.86]
[1742582042788,0.14216157,128.24,128.07,205.86]
[1742582042789,62.91811799,128.13,128.07,205.86]
[1742582042992,62.91811799,128.08,128.0,65.62753179]
[1742582043295,62.91811799,128.03,128.0,2.7094138]
[1742582043495,62.91811799,128.01,128.0,2.7094138]
[1742582043789,62.91811799,128.01,128.0,1.38e-05]
[1742582043960,48.57232983,128.01,128.0,1.38e-05]
[1742582044291,0.28432314,128.11,128.0,1.38e-05]
[1742582044466,62.91811799,128.01,128.0,1.38e-05]
[1742582044884,125.83623598,128.01,127.91,48.4813]
[1742582045077,62.91811799,127.92,127.75,2.7094138]
[1742582045269,62.91811799,127.86,127.79,76.82921778]
[1742582045586,62.91811799,127.88,127.79,13.91109979]
[1742582045768,62.91811799,127.87,127.79,13.91109979]
[1742582046091,62.91811799,127.86,127.79,76.82921778]
[1742582046566,24.82558548,127.86,127.79,76.82921778]
[1742582046765,62.91811799,127.89,127.82,62.91811799]
[1742582047098,62.91811799,127.91,127.84,62.91811799]
[1742582047283,62.91811799,127.86,127.79,76.82921778]
[1742582047597,58.38944796,127.94,127.79,13.91109979]
[1742582048095,62.91811799,127.89,127.83,62.91811799]
[1742582048279,62.91811799,127.91,127.85,62.91811799]
[1742582048478,62.91811799,127.9,127.84,62.91811799]
[1742582048666,62.91811799,127.86,127.79,13.91109979]
[1742582048866,62.91811799,127.85,127.79,76.82921778]
[1742582049067,62.91811799,127.84,127.79,13.91109979]
[1742582049365,62.91811799,127.83,127.79,13.91109979]
[1742582049766,62.91811799,127.84,127.79,13.91109979]
[1742582049962,20.0,127.9,127.81,62.91811799]
[1742582050189,20.0,127.9,127.79,13.91109979]
[1742582050190,62.91811799,127.86,127.8,62.91811799]
[1742582050369,62.91811799,127.85,127.79,76.82921778]
[1742582050568,62.91811799,127.85,127.79,13.91109979]
[1742582050871,62.91811799,127.86,127.8,62.91811799]
[1742582051178,62.91811799,127.89,127.82,62.91811799]
[1742582051387,62.91811799,127.91,127.85,62.91811799]
[1742582051573,62.91811799,127.91,127.79,13.91109979]
[1742582051574,62.91811799,127.91,127.86,62.91811799]
[1742582051779,62.91811799,127.9,127.79,13.91109979]
[1742582051980,62.91811799,127.89,127.84,62.91811799]
[1742582052195,39.0721,127.97,127.85,62.91811799]
[1742582052393,62.91811799,127.93,127.86,62.91811799]
[1742582052691,39.16284012,128.03,127.8,206.4]
[1742582052692,206.4,128.07,127.92,62.91811799]
[1742582052894,62.91811799,127.98,127.92,62.91811799]
[1742582053675,206.4,128.07,127.84,20.0]
[1742582053889,62.91811799,127.89,127.79,13.91109979]
[1742582054196,62.91811799,127.86,127.8,62.91811799]
[1742582054381,62.91811799,127.88,127.83,62.91811799]
[1742582054691,62.91811799,127.9,127.85,62.91811799]
[1742582054894,62.91811799,127.88,127.82,62.91811799]
[1742582055196,62.91811799,127.87,127.81,62.91811799]
[1742582055380,62.91811799,127.86,127.79,13.91109979]
[1742582055582,62.91811799,127.86,127.79,76.82921778]
[1742582055776,62.91811799,127.86,127.8,62.91811799]
[1742582056188,23.42,127.89,127.82,62.91811799]
[1742582056394,62.91811799,127.87,127.81,62.91811799]
[1742582056702,62.91811799,127.88,127.81,62.91811799]
[1742582057091,62.91811799,127.91,127.84,62.91811799]
[1742582057275,62.91811799,127.91,127.85,62.91811799]
[1742582057575,62.91811799,127.91,127.8,18.64964886]
[1742582057576,62.91811799,127.91,127.86,62.91811799]
[1742582057773,62.91811799,127.91,127.82,206.58]
[1742582057978,62.91811799,127.89,127.83,62.91811799]
[1742582058190,20.0,127.86,127.82,269.49811799]
[1742582058390,62.91811799,127.87,127.82,206.58]
[1742582058591,62.91811799,127.86,127.8,62.91811799]
[1742582058794,212.7828,128.06,127.85,81.56776685]
[1742582058978,62.91811799,127.97,127.91,62.91811799]
[1742582059179,62.91811799,127.96,127.9,62.91811799]
[1742582059393,23.42,127.98,127.92,62.91811799]
[1742582059394,86.33811799,127.98,127.92,62.91811799]
[1742582059581,62.91811799,128.0,127.95,62.91811799]
[1742582059786,20.0,127.97,127.94,62.91811799]
[1742582060195,20.0,127.97,127.85,7.8214]
[1742582060196,62.91811799,127.96,127.87,0.28432314]
[1742582060398,62.91811799,127.92,127.87,62.91811799]
[1742582060705,23.56216157,127.97,127.87,62.91811799]
[1742582060706,20.0,127.94,127.87,62.91811799]
[1742582061203,62.91811799,127.89,127.84,62.91811799]
[1742582061500,62.91811799,127.88,127.82,62.91811799]
[1742582061708,20.0,127.93,127.87,62.91811799]
[1742582061999,20.0,127.91,127.89,62.91811799]
[1742582062199,62.91811799,127.94,127.89,62.91811799]
[1742582062581,0.14216157,128.0,127.91,62.91811799]
[1742582062802,20.0,127.93,127.91,62.91811799]
[1742582063005,62.91811799,127.95,127.9,62.91811799]
[1742582063202,62.91811799,127.97,127.91,62.91811799]
[1742582063427,62.91811799,128.0,127.89,18.933972]
[1742582063583,62.91811799,128.01,127.96,62.91811799]
[1742582063787,6.2028,128.06,127.93,0.28432314]
[1742582063788,62.91811799,128.02,127.93,0.28432314]
[1742582063989,62.91811799,128.01,127.96,62.91811799]
[1742582064190,62.91811799,128.05,128.0,81.56776685]
[1742582064400,206.64,128.11,127.96,0.28432314]
[1742582064401,62.91811799,128.06,127.96,0.28432314]
[1742582064708,0.15980696,128.0,127.98,62.91811799]
[1742582064886,0.15980696,128.0,127.97,18.64964886]
[1742582065088,0.15980696,128.0,127.97,81.56776685]
[1742582065387,0.15980696,128.0,127.99,81.56776685]
[1742582065799,0.15980696,128.0,127.99,62.91811799]
[1742582066003,63.07792495,128.0,127.95,18.64964886]
[1742582066300,0.15980696,128.0,127.99,81.56776685]
[1742582066479,0.15980696,128.0,127.99,82.13641313]
[1742582066681,0.16623297,128.03,128.01,0.14216157]
[1742582066879,0.03581215,128.03,128.02,89.66328999]
[1742582067103,0.03581215,128.03,128.02,89.80545156]
[1742582067306,0.03581215,128.03,128.02,81.85208999]
[1742582067784,0.03581215,128.03,128.02,81.56776685]
[1742582067983,0.03581215,128.03,127.98,62.91811799]
[1742582068195,0.03581215,128.03,127.97,62.91811799]
[1742582068196,62.95393014,128.03,127.97,62.91811799]
[1742582068508,0.03581215,128.03,128.02,62.91811799]
[1742582068884,0.03581215,128.03,128.0,62.91811799]
[1742582069203,62.95393014,128.03,127.98,62.91811799]
[1742582069410,0.03581215,128.03,127.98,62.91811799]
[1742582069904,0.03581215,128.03,127.95,18.64964886]
[1742582070090,0.03581215,128.03,128.02,81.56776685]
[1742582070692,0.03581215,128.03,128.02,62.91811799]
[1742582071099,0.03581215,128.03,128.02,81.56776685]
[1742582071293,0.03581215,128.03,128.02,81.85208999]
[1742582071502,0.03581215,128.03,128.02,89.66328999]
[1742582071902,0.03581215,128.03,128.02,81.56776685]
[1742582072206,0.03581215,128.03,128.02,62.91811799]
[1742582072416,0.03581215,128.03,128.01,62.91811799]
[1742582072929,0.03581215,128.03,128.0,225.18964886]
[1742582072930,0.03581215,128.03,128.02,81.56776685]
[1742582073098,0.0236161,128.06,128.03,18.64964886]
[1742582073414,206.68216157,128.15,128.06,18.933972]
[1742582073415,62.91811799,128.15,128.06,18.933972]
[1742582073589,0.5,128.3,128.14,62.91811799]
[1742582073789,62.91811799,128.19,128.14,62.91811799]
[1742582074007,62.91811799,128.19,128.13,62.91811799]
[1742582074207,62.91811799,128.17,128.11,62.91811799]
[1742582074393,62.91811799,128.13,128.08,18.64964886]
[1742582074593,62.91811799,128.13,128.08,81.56776685]
[1742582074807,62.91811799,128.14,128.09,62.91811799]
[1742582075119,53.79772756,128.18,128.12,53.79772756]
[1742582075418,0.53,128.32,128.15,72.44737642]
[1742582075419,61.59692756,128.22,128.15,72.44737642]
[1742582075592,7.8001,128.21,128.15,72.44737642]
[1742582075798,53.79772756,128.24,128.15,72.44737642]
[1742582076104,53.79772756,128.24,128.15,72.73169956]
[1742582076308,53.79772756,128.23,128.15,72.44737642]
[1742582076615,53.79772756,128.21,128.15,72.44737642]
[1742582076795,7.8005,128.2,128.15,72.44737642]
[1742582076996,7.8003,128.2,128.15,72.44737642]
[1742582079119,7.7997,128.21,128.15,72.44737642]
[1742582079823,53.79772756,128.18,128.09,206.5]
[1742582080028,53.79772756,128.17,128.13,18.64964886]
[1742582080194,53.79772756,128.17,128.12,53.79772756]
[1742582080596,53.79772756,128.17,128.11,53.79772756]
[1742582080908,7.8327,128.16,128.11,53.79772756]
[1742582081419,53.79772756,128.13,128.08,53.79772756]
[1742582081832,27.3395,128.16,128.07,53.79772756]
[1742582081992,27.3395,128.16,128.04,27.47726157]
[1742582081993,0.03,128.16,128.05,0.28432314]
[1742582082307,0.03,128.16,128.13,53.79772756]
[1742582082517,0.03,128.16,128.14,53.79772756]
[1742582082715,6.4091,128.38,128.15,281.86070867]
[1742582082898,38.9531,128.36,128.27,53.79772756]
[1742582083098,0.03,128.45,128.31,53.79772756]
[1742582083440,0.03,128.45,128.37,0.28432314]
[1742582083736,0.03,128.45,128.43,53.79772756]
[1742582083925,0.03,128.55,128.45,0.56864628]
[1742582084234,0.03,128.55,128.53,53.79772756]
[1742582084716,53.94551501,128.54,128.47,53.79772756]
[1742582084895,53.94551501,128.54,128.4,0.28432314]
[1742582084896,53.79772756,128.48,128.4,0.28432314]
[1742582085096,62.89028863,128.46,128.37,18.64964886]
[1742582085305,62.89028863,128.41,128.35,18.64964886]
[1742582085515,20.0,128.44,128.35,18.64964886]
[1742582085709,20.0,128.42,128.39,62.89028863]
[1742582086217,62.89028863,128.45,128.39,81.53993749]
[1742582086423,20.0,128.43,128.39,81.53993749]
[1742582086805,82.89028863,128.43,128.37,62.89028863]
[1742582087121,70.67718863,128.42,128.36,62.89028863]
[1742582087304,20.0,128.43,128.34,206.2]
[1742582087305,7.7864,128.43,128.38,62.89028863]
[1742582087828,20.0,128.4,128.33,18.64964886]
[1742582088124,62.89028863,128.38,128.33,18.64964886]
[1742582088432,20.0,128.4,128.29,0.28432314]
[1742582088606,0.03,128.68,128.52,0.7437]
[1742582088802,0.03,128.68,128.65,20.0]
[1742582089001,7.764,128.8,128.71,0.28432314]
[1742582089209,62.89028863,128.84,128.69,0.28432314]
[1742582089404,62.89028863,128.77,128.69,62.89028863]
[1742582089602,19.9012,128.86,128.7,62.89028863]
[1742582089815,62.89028863,128.76,128.69,62.89028863]
[1742582090034,62.89028863,128.73,128.66,62.89028863]
[1742582090232,62.89028863,128.67,128.55,0.14216157]
[1742582090431,62.89028863,128.61,128.54,67.05528863]
[1742582090738,18.64964886,128.67,128.54,67.05528863]
[1742582090739,62.89028863,128.63,128.55,62.89028863]
[1742582090949,7.7766,128.59,128.54,4.165]
[1742582091241,0.42648471,128.68,128.56,62.89028863]
[1742582091413,62.89028863,128.63,128.56,62.89028863]
[1742582091613,2.4284,128.77,128.62,62.89028863]
[1742582091818,2.4284,128.77,128.64,62.89028863]
[1742582091819,62.89028863,128.71,128.64,62.89028863]
[1742582092240,2.4284,128.77,128.58,62.89028863]
[1742582092241,62.89028863,128.65,128.58,62.89028863]
[1742582092419,62.89028863,128.64,128.57,62.89028863]
[1742582092619,20.0,128.7,128.58,62.89028863]
[1742582092819,62.89028863,128.62,128.56,62.89028863]
[1742582093034,7.7754,128.61,128.56,63.17461177]
[1742582093342,70.66558863,128.62,128.56,62.89028863]
[1742582093517,62.89028863,128.65,128.58,62.89028863]
[1742582093719,7.7711,128.69,128.63,62.89028863]
[1742582094042,7.7711,128.69,128.58,18.79181043]
[1742582094043,7.7711,128.69,128.64,62.89028863]
[1742582094227,62.89028863,128.68,128.61,62.89028863]
[1742582094422,62.89028863,128.65,128.59,62.89028863]
[1742582094626,62.89028863,128.63,128.57,62.89028863]
[1742582094824,62.89028863,128.62,128.56,62.89028863]
[1742582095029,62.89028863,128.6,128.54,4.165]
[1742582095344,62.89028863,128.6,128.54,67.05528863]
[1742582096238,62.89028863,128.58,128.54,4.165]
[1742582096630,20.0,128.61,128.54,67.05528863]
[1742582096830,62.89028863,128.59,128.54,4.165]
[1742582097032,70.66748863,128.58,128.54,4.165]
[1742582097737,20.0,128.53,128.52,21.1827]
[1742582097924,62.89028863,128.53,128.43,62.89028863]
[1742582098126,62.89028863,128.49,128.38,1.62007581]
[1742582098447,62.89028863,128.49,128.38,0.063]
[1742582098636,20.0,128.5,128.4,62.89028863]
[1742582098827,62.89028863,128.46,128.4,62.89028863]
[1742582099029,19.4602,128.47,128.39,62.89028863]
[1742582099334,62.89028863,128.46,128.4,62.89028863]
[1742582099743,62.89028863,128.45,128.39,62.89028863]
[1742582100041,62.89028863,128.43,128.38,0.063]
[1742582100246,19.4602,128.47,128.38,62.95328863]
[1742582100247,62.89028863,128.44,128.38,62.95328863]
[1742582100447,62.89028863,128.43,128.38,0.063]
[1742582101445,70.67718863,128.42,128.38,0.063]
[1742582101645,7.7869,128.42,128.38,62.95328863]
[1742582101868,7.7869,128.42,128.39,62.89028863]
[1742582103444,7.7881,128.4,128.38,0.063]
[1742582103826,70.67838863,128.4,128.38,0.063]
[1742582104349,20.0,128.36,128.22,67.02497634]
[1742582104540,62.89028863,128.34,128.29,62.89028863]
[1742582104853,62.89028863,128.34,128.28,62.89028863]
[1742582105036,20.0,128.36,128.28,62.89028863]
[1742582105037,62.89028863,128.33,128.28,62.89028863]
[1742582105223,66.1993,128.4,128.32,53.6648832]
[1742582105424,19.4704,128.4,128.36,53.6648832]
[1742582105628,53.6648832,128.38,128.32,53.6648832]
[1742582105930,53.6648832,128.35,128.29,53.6648832]
[1742582106151,53.6648832,128.33,128.27,53.6648832]
[1742582106323,53.6648832,128.32,128.26,53.6648832]
[1742582106529,53.6648832,128.34,128.28,53.6648832]
[1742582106838,18.64964886,128.35,128.27,53.6648832]
[1742582107027,53.6648832,128.33,128.27,53.6648832]
[1742582107226,53.6648832,128.32,128.26,53.6648832]
[1742582107423,61.4584832,128.31,128.25,53.7278832]
[1742582107640,53.6648832,128.3,128.25,0.063]
[1742582107845,53.6648832,128.29,128.25,0.063]
[1742582108050,53.6648832,128.28,128.25,0.063]
[1742582108229,53.6648832,128.27,128.25,0.063]
[1742582108425,53.6648832,128.26,128.25,0.063]
[1742582109130,53.6648832,128.3,128.25,0.063]
[1742582109361,80.9424832,128.31,128.25,53.7278832]
[1742582109536,53.6648832,128.3,128.25,0.063]
[1742582109736,53.6648832,128.29,128.25,0.063]
[1742582109936,53.6648832,128.28,128.25,0.063]
[1742582110452,50.6976,128.31,128.25,0.063]
[1742582110635,53.6648832,128.28,128.25,0.063]
[1742582110834,50.6976,128.31,128.25,0.063]
[1742582111051,61.4584832,128.31,128.26,53.6648832]
[1742582111253,7.7936,128.31,128.25,0.063]
[1742582111564,53.6648832,128.3,128.25,53.7278832]
[1742582111740,53.6648832,128.28,128.25,0.063]
[1742582112148,53.6648832,128.3,128.25,53.7278832]
[1742582112333,61.4584832,128.31,128.26,53.6648832]
[1742582112531,53.6648832,128.27,128.25,0.063]
[1742582112743,53.6648832,128.26,128.25,0.063]
[1742582113365,77.0848832,128.26,128.25,0.063]
[1742582113537,84.8814832,128.26,128.25,0.063]
[1742582113868,61.4605832,128.28,128.25,0.063]
[1742582114237,53.6648832,128.26,128.25,0.063]
[1742582114466,77.0848832,128.26,128.25,0.063]
[1742582114770,20.0,128.23,128.16,53.6648832]
[1742582114956,53.6648832,128.22,128.16,53.6648832]
[1742582115635,7.7997,128.21,128.16,53.6648832]
[1742582115839,7.7997,128.21,128.17,53.6648832]
[1742582117038,7.799,128.22,128.17,53.6648832]
[1742582117241,53.6648832,128.28,128.21,53.6648832]
[1742582117442,7.793,128.32,128.27,53.6648832]
[1742582118040,53.6648832,128.28,128.22,53.6648832]
[1742582118265,53.6648832,128.28,128.23,53.6648832]
[1742582118446,53.6648832,128.27,128.22,53.6648832]
[1742582118644,53.6648832,128.3,128.24,53.6648832]
[1742582119051,0.28432314,128.33,128.19,19.07613357]
[1742582119052,53.6648832,128.33,128.19,19.07613357]
[1742582119245,53.6648832,128.33,128.27,53.6648832]
[1742582119444,53.6648832,128.3,128.2,7.8003]
[1742582119647,53.6648832,128.29,128.24,53.6648832]
[1742582120142,53.6648832,128.3,128.25,53.6648832]
[1742582120345,53.6648832,128.28,128.23,53.6648832]
[1742582120544,53.6648832,128.28,128.19,7.8007]
[1742582120545,0.03,128.25,128.22,53.6648832]
[1742582121162,0.03,128.25,128.19,53.6648832]
[1742582121362,53.6648832,128.23,128.17,53.6648832]
[1742582121549,53.6648832,128.22,128.17,53.6648832]
[1742582121950,53.6648832,128.23,128.16,0.063]
[1742582122154,53.6648832,128.21,128.16,53.7278832]
[1742582122348,53.6648832,128.2,128.16,0.063]
[1742582122664,0.59864628,128.25,128.17,53.6648832]
[1742582122665,7.799,128.22,128.17,53.6648832]
[1742582122874,61.4638832,128.22,128.17,53.6648832]
[1742582123159,53.6648832,128.2,128.16,0.063]
[1742582123359,53.6648832,128.18,128.16,0.063]
[1742582123944,50.7167,128.22,128.16,0.063]
[1742582123945,53.6648832,128.17,128.16,0.063]
[1742582124353,53.6648832,128.19,128.16,0.063]
[1742582124745,7.8015,128.18,128.16,0.063]
[1742582124944,0.28432314,128.24,128.17,53.6648832]
[1742582124945,61.4626832,128.24,128.17,53.6648832]
[1742582125267,0.03,128.25,128.23,51.26368151]
[1742582125456,0.03,128.25,128.24,51.26368151]
[1742582125841,0.03,128.25,128.19,20.0]
[1742582126046,0.03,128.25,128.24,51.26368151]
[1742582126446,7.8272,128.25,128.23,51.26368151]
[1742582126761,7.8272,128.25,128.22,51.26368151]
[1742582126762,0.03,128.25,128.22,51.26368151]
[1742582126953,0.03,128.25,128.2,51.26368151]
[1742582127139,51.29368151,128.25,128.2,51.26368151]
[1742582127866,0.03,128.25,128.24,51.54800465]
[1742582128039,0.03,128.25,128.24,103.0960093]
[1742582128359,0.03,128.25,128.24,51.69016622]
[1742582128545,0.03,128.25,128.24,51.26368151]
[1742582129463,0.03,128.25,128.23,51.26368151]
[1742582129645,0.03,128.25,128.21,51.26368151]
[1742582130146,0.03,128.25,128.2,51.26368151]
[1742582130341,0.03,128.25,128.17,213.9421]
[1742582130342,51.22935905,128.24,128.19,51.26368151]
[1742582130553,51.26368151,128.23,128.18,51.26368151]
[1742582130752,7.799,128.22,128.18,51.26368151]
[1742582131070,0.03,128.25,128.22,19.21829514]
[1742582131265,0.03,128.25,128.24,51.69016622]
[1742582132764,0.03,128.25,128.24,51.26368151]
[1742582132975,0.03,128.25,128.24,51.54800465]
[1742582133161,0.03,128.25,128.24,110.8938093]